{"text_format":"3","workbook":"xlsx","n_sheets":2,"sheets":["Faktura za naplatu","Postavljanje tvrtke"],"not_rendered":{"images":1,"defined_names":27},"read":"whole","date_system":"1900"}

{"sheet":"Faktura za naplatu","index":0,"n_rows":35,"n_cols":7,"rows_kept":35,"merged":[[1,1,1,2],[1,3,2,4],[1,6,2,6],[3,3,3,4],[4,3,4,4],[5,3,5,4],[23,1,23,3],[24,1,24,3],[25,1,25,3],[26,1,26,3],[34,1,34,4]]}
[null,"FAKTURA","0005."]
[null,{"$f":"TODAY()","v":"2018-07-13"},null,{"$f":"UkupniIznosFakture","v":398.25},null," ","Postavljanje tvrtke"]
[null,"DATUM DOSPIJEĆA:",{"$f":"TODAY()+15","v":"2018-07-28"},null,null," "]
[null,"DRAŽENKA ANIĆ",null,"ADVENTURE WORKS"]
[null,"Fabrikam, Inc.",null,"Ulica javora 23"]
[null,"Ulica jorgovana 12",null,"10410 Velika Gorica"]
[null,"10000 Zagreb"]
[null,"KOLIČINA","DETALJI","JEDINIČNA CIJENA","ZBROJ RETKA"]
[null,2,"Widgeti",74.75,{"$f":"IFERROR(DetaljiOFakturi[[#This Row],[JEDINIČNA CIJENA]]*DetaljiOFakturi[[#This Row],[KOLIČINA]],\"\")","v":{"v":149.5,"d":"149.50"}}]
[null,5,"Podlošci",49.75,{"$f":"IFERROR(DetaljiOFakturi[[#This Row],[JEDINIČNA CIJENA]]*DetaljiOFakturi[[#This Row],[KOLIČINA]],\"\")","v":248.75}]
[{"$nulls":4},{"$f":"IFERROR(DetaljiOFakturi[[#This Row],[JEDINIČNA CIJENA]]*DetaljiOFakturi[[#This Row],[KOLIČINA]],\"\")","v":0}]
[{"$nulls":4},{"$f":"IFERROR(DetaljiOFakturi[[#This Row],[JEDINIČNA CIJENA]]*DetaljiOFakturi[[#This Row],[KOLIČINA]],\"\")","v":0}]
[{"$nulls":4},{"$f":"IFERROR(DetaljiOFakturi[[#This Row],[JEDINIČNA CIJENA]]*DetaljiOFakturi[[#This Row],[KOLIČINA]],\"\")","v":0}]
[{"$nulls":4},{"$f":"IFERROR(DetaljiOFakturi[[#This Row],[JEDINIČNA CIJENA]]*DetaljiOFakturi[[#This Row],[KOLIČINA]],\"\")","v":0}]
[{"$nulls":4},{"$f":"IFERROR(DetaljiOFakturi[[#This Row],[JEDINIČNA CIJENA]]*DetaljiOFakturi[[#This Row],[KOLIČINA]],\"\")","v":0}]
[{"$nulls":4},{"$f":"IFERROR(DetaljiOFakturi[[#This Row],[JEDINIČNA CIJENA]]*DetaljiOFakturi[[#This Row],[KOLIČINA]],\"\")","v":0}]
[{"$nulls":4},{"$f":"IFERROR(DetaljiOFakturi[[#This Row],[JEDINIČNA CIJENA]]*DetaljiOFakturi[[#This Row],[KOLIČINA]],\"\")","v":0}]
[{"$nulls":4},{"$f":"IFERROR(DetaljiOFakturi[[#This Row],[JEDINIČNA CIJENA]]*DetaljiOFakturi[[#This Row],[KOLIČINA]],\"\")","v":0}]
[{"$nulls":4},{"$f":"IFERROR(DetaljiOFakturi[[#This Row],[JEDINIČNA CIJENA]]*DetaljiOFakturi[[#This Row],[KOLIČINA]],\"\")","v":0}]
[{"$nulls":4},{"$f":"IFERROR(DetaljiOFakturi[[#This Row],[JEDINIČNA CIJENA]]*DetaljiOFakturi[[#This Row],[KOLIČINA]],\"\")","v":0}]
[{"$nulls":4},{"$f":"IFERROR(DetaljiOFakturi[[#This Row],[JEDINIČNA CIJENA]]*DetaljiOFakturi[[#This Row],[KOLIČINA]],\"\")","v":0}]
[{"$nulls":4},{"$f":"IFERROR(DetaljiOFakturi[[#This Row],[JEDINIČNA CIJENA]]*DetaljiOFakturi[[#This Row],[KOLIČINA]],\"\")","v":0}]
[{"$nulls":4},{"$f":"IFERROR(DetaljiOFakturi[[#This Row],[JEDINIČNA CIJENA]]*DetaljiOFakturi[[#This Row],[KOLIČINA]],\"\")","v":0}]
[null,"Popust"]
[null,"Neto ukupni zbroj",null,null,{"$f":"SUM(DetaljiOFakturi[ZBROJ RETKA])-E24","v":{"v":398.25,"d":"398.25 kn"}}]
[null,"Porez"]
[null,{"$f":"\"UKUPNO U \" & REPT(CompanySetup_YourCurrencyAbbreviation,LEN(CompanySetup_YourCurrencyAbbreviation)>0)","v":"UKUPNO U HRK"},null,null,{"$f":"IFERROR(E25+E26, \"\")","v":{"v":398.25,"d":"398.25 kn"}}]
[null,"PODACI ZA PLAĆANJE",null,null,"OSTALE INFORMACIJE"]
[null,"Naziv primatelja:",{"$f":" CompanySetup_BankBeneficiaryName","v":"Adventure Works"},null,{"$f":"IFERROR(CompanySetup_YourName,\"\")","v":""}]
[null,"Naziv banke:",{"$f":"CompanySetup_BankName","v":"Woodgrove Bank"},null,{"$f":"IFERROR(\"Telefon: \" & CompanySetup_YourPhone,\"\")","v":"Telefon: 425-555-0150"}]
[null,"Adresa banke:",{"$f":"CompanySetup_BankAddress","v":"Gornja ulica 23, 10410 Velika Gorica"},null,{"$f":"IFERROR(\"Faksimil: \" & CompanySetup_YourFax,\"\")","v":"Faksimil: 425-555-0151"}]
[null,"Broj računa:",{"$f":"CompanySetup_BankAccount","v":1234567},null,{"$f":"IFERROR(CompanySetup_YourURL,\"\")","v":"Adventure-Works.com"}]
[null,"Broj usmjeravanja (SWIFT kod):",{"$f":"CompanySetup_BankRouting","v":9876543210},null,{"$f":"IFERROR(CompanySetup_YourEmail,\"\")","v":"racunovodstvo@adventure-works.com"}]
[null,"Poziv na broj:",{"$f":"InvoiceNumberDisplay","v":"0005."},null,{"$f":"IFERROR(IF(LEN(Client_PO),\"Contract/PO: \" & Client_PO,\"\"),\"\")","v":""}]
[null,{"$f":"UPPER(\"Uplata se mora izvršiti bankovnim transferom ili čekom doznačenim na \" & CompanySetup_CheckPayee& \".\")","v":"UPLATA SE MORA IZVRŠITI BANKOVNIM TRANSFEROM ILI ČEKOM DOZNAČENIM NA ADVENTURE WORKS."}]

{"sheet":"Postavljanje tvrtke","index":1,"n_rows":20,"n_cols":5,"rows_kept":20}
[null,"POSTAVLJANJE TVRTKE"]
[null,"DETALJI O TVRTKI KOJA FAKTURIRA","VRIJEDNOST",null,"Faktura za naplatu"]
[null,"Naziv","Srećko Čeh"]
[null,"Naziv tvrtke","ADVENTURE WORKS"]
[null,"Redak adrese 1","Ulica javora 23"]
[null,"Redak adrese 2","10410 Velika Gorica"]
[null,"Redak adrese 3"]
[null,"Redak adrese 4"]
[null,"Redak adrese 5"]
[null,"Telefon","425-555-0150"]
[null,"Faksimil","425-555-0151"]
[null,"Web-mjesto","Adventure-Works.com"]
[null,"Adresa e-pošte","racunovodstvo@adventure-works.com"]
[null,"Kratica valute","HRK"]
[null,"Naziv primatelja uplate bankovnim prijenosom","Adventure Works"]
[null,"Naziv banke","Woodgrove Bank"]
[null,"Adresa banke","Gornja ulica 23, 10410 Velika Gorica"]
[null,"Broj računa",1234567]
[null,"Broj usmjeravanja (SWIFT kod)",9876543210]
[null,"Svi čekovi idu na račun tvrtke","Adventure Works"]